lending/lending_fUSD_20250808
["ID","MTS","AMOUNT","RATE_DAILY","PERIOD"]
[377985450,1754649050073,-400.0,0.00018991,2]
[377985451,1754649050082,-425.18,0.00018991,2]
[377985452,1754649050093,-400.0,0.00018991,2]
[377985453,1754649050102,-894.27,0.00018991,2]
[377985454,1754649050112,-400.0,0.00018991,2]
[377985455,1754649050122,-818.25,0.00018991,2]
[377985456,1754649050131,-500.0,0.00018991,2]
[377985457,1754649050141,-400.0,0.00018991,2]
[377985458,1754649050150,-400.0,0.00018991,2]
[377985459,1754649050160,-400.0,0.00018991,2]
[377985460,1754649050170,-524.8638871,0.00018991,2]
[377985461,1754649050179,-400.56,0.00018991,2]
[377985462,1754649050189,-400.0,0.00018991,2]
[377985463,1754649050199,-400.0,0.00018991,2]
[377985464,1754649050208,-450.42779657,0.00018991,2]
[377985465,1754649050218,-1362.51,0.00018991,2]
[377985466,1754649050228,-400.0,0.00018991,2]
[377985467,1754649050238,-1330.03,0.00018991,2]
[377985468,1754649050247,-400.0,0.00018991,2]
[377985469,1754649050256,-541.32887096,0.00018991,2]
[377985470,1754649050266,-500.0,0.00018992,2]
[377985471,1754649050275,-500.0,0.00018992,2]
[377985472,1754649050285,-1376.16,0.00018992,2]
[377985473,1754649050295,-1097.74,0.00018992,2]
[377985474,1754649050306,-1755.98,0.00018992,2]
[377985475,1754649050315,-2124.81,0.00018992,2]
[377985476,1754649050327,-1240.97,0.00018992,2]
[377985477,1754649050337,-5638.8059927,0.00018998,2]
[377985478,1754649050350,-156053.1160896,0.00018998,2]
[377985479,1754649050360,-500.0,0.00018999,2]
[377985480,1754649050371,-500.0,0.00018999,2]
[377985481,1754649050381,-400.0,0.00018999,2]
[377985482,1754649050390,-2445.59114857,0.00019,2]
[377985483,1754649050400,-300.18968716,0.00019,2]
[377985484,1754649050410,-5000.0,0.00019,5]
[377985485,1754649050420,-763119.18541218,0.00019,2]
[377985486,1754649051316,-8635.18518635,0.00019,2]
[377985487,1754649051330,-8593.3067547,0.00019,2]
[377985488,1754649051343,-4796.9623833,0.00019,2]
[377985489,1754649051357,-31374.97815742,0.00019,2]
[377985490,1754649052643,-400.0,0.00018767,2]
[377985491,1754649052653,-400.0,0.00018767,2]
[377985492,1754649052661,-400.0,0.00018767,2]
[377985493,1754649052670,-215100.90693524,0.00019,2]
[377985523,1754649396483,1553.11046247,0.00030137,120]
[377985524,1754649419269,200.0,0.00030137,120]
[377985525,1754649428848,165.86171641,0.0003013,120]
[377985529,1754649492556,1000.0,0.00017792,2]
[377985534,1754649509144,3587.25,0.00017789,2]
[377985540,1754649588434,150.0,0.0001748,2]
[377985541,1754649588679,500.31477299,0.00017559,2]
[377985542,1754649588962,586.78893129,0.00017639,2]
[377985543,1754649589392,673.26308958,0.00017718,2]
[377985544,1754649589733,759.73724788,0.00017798,2]
[377985545,1754649590066,846.21140617,0.00017877,2]
[377985546,1754649590441,932.68556447,0.00017957,2]
[377985547,1754649606658,507.4529963,0.0001801,2]
[377985552,1754649716886,340.43,0.00015068,2]
[377985553,1754649716953,340.43,0.00016648,2]
[377985554,1754649729541,266.04,0.0001767,2]
[377985560,1754649836611,231.24,0.00013699,2]
[377985569,1754649907135,150.0,0.00017088,2]
[377985570,1754649907651,150.0,0.00017088,2]
[377985571,1754649913750,150.0,0.00017088,2]
[377985580,1754650062039,150.0,0.00017756,2]
[377985591,1754650231997,-340.43,0.00018228,2]
[377985592,1754650232008,-1000.0,0.00018379,4]
[377985593,1754650232017,-250.0,0.00018379,2]
[377985594,1754650232027,-1000.0,0.00018528,4]
[377985595,1754650232037,-53.32484211,0.0001853,2]
[377985596,1754650232049,-383.82515789,0.0001853,2]
[377985597,1754650232059,-266.04,0.00018553,2]
[377985598,1754650232069,-267.46074303,0.00018661,2]
[377985599,1754650232079,-1200.0,0.00018666,2]
[377985600,1754650232090,-577.63190125,0.00018667,2]
[377985601,1754650232099,-487.1749,0.00018667,2]
[377985602,1754650232110,-280.03266753,0.00018667,2]
[377985603,1754650232122,-766.00080004,0.00018667,2]
[377985604,1754650232138,-3953.96653243,0.00018667,2]
[377985605,1754650232148,-577.63190117,0.00018693,2]
[377985606,1754650232157,-577.63190117,0.00018719,2]
[377985607,1754650232167,-150.0,0.00018731,2]
[377985609,1754650232176,-150.0,0.00018739,2]
[377985611,1754650232186,-160.0,0.00018741,2]
[377985613,1754650232195,-151.0,0.00018741,2]
[377985615,1754650232206,-150.0,0.00018741,2]
[377985617,1754650232216,-150.0,0.00018742,2]
[377985619,1754650232226,-577.63190117,0.00018745,2]
[377985623,1754650232235,-150.0,0.00018755,2]
[377985626,1754650232244,-199.14,0.00018757,2]
[377985629,1754650232253,-249.99999999,0.00018766,2]
[377985632,1754650232263,-150.0,0.00018766,2]
[377985634,1754650232273,-703.14,0.00018766,2]
[377985637,1754650232283,-666.5,0.00018766,2]
[377985639,1754650232293,-204.73853336,0.00018766,2]
[377985641,1754650232304,-367.16962752,0.00018766,2]
[377985643,1754650232314,-187.61037586,0.00018766,2]
[377985645,1754650232324,-1072.76,0.00018766,2]
[377985647,1754650232334,-400.0,0.00018766,2]
[377985649,1754650232344,-400.0,0.00018766,2]
[377985651,1754650232353,-1221.27,0.00018766,2]
[377985653,1754650232363,-400.0,0.00018766,2]
[377985655,1754650232374,-400.0,0.00018766,2]
[377985657,1754650232383,-471.22,0.00018766,2]
[377985660,1754650232393,-400.0,0.00018766,2]
[377985662,1754650232403,-400.0,0.00018766,2]
[377985664,1754650232412,-640.67,0.00018766,2]
[377985666,1754650232422,-400.0,0.00018766,2]
[377985668,1754650232432,-400.0,0.00018766,2]
[377985670,1754650232441,-400.0,0.00018766,2]
[377985672,1754650232451,-400.0,0.00018766,2]
[377985674,1754650232461,-400.0,0.00018766,2]
[377985676,1754650232471,-539.29,0.00018766,2]
[377985678,1754650232480,-400.0,0.00018766,2]
[377985680,1754650232490,-684.13,0.00018766,2]
[377985682,1754650232500,-400.0,0.00018766,2]
[377985684,1754650232509,-400.0,0.00018766,2]
[377985686,1754650232519,-1041.86,0.00018766,2]
[377985688,1754650232528,-400.0,0.00018766,2]
[377985690,1754650232538,-400.0,0.00018766,2]
[377985692,1754650232548,-400.0,0.00018766,2]
[377985694,1754650232557,-400.0,0.00018766,2]
[377985696,1754650232567,-1005.28,0.00018766,2]
[377985698,1754650232577,-512.23,0.00018766,2]
[377985700,1754650232586,-400.0,0.00018766,2]
[377985702,1754650232596,-400.0,0.00018766,2]
[377985704,1754650232605,-400.0,0.00018766,2]
[377985706,1754650232615,-1615.21,0.00018766,2]
[377985708,1754650232625,-400.0,0.00018766,2]
[377985710,1754650232635,-406.26,0.00018766,2]
[377985712,1754650232644,-400.0,0.00018766,2]
[377985714,1754650232654,-680.53,0.00018766,2]
[377985716,1754650232663,-611.35,0.00018766,2]
[377985718,1754650232673,-252.02712917,0.00018766,2]
[377985720,1754650232682,-515.34,0.00018766,2]
[377985722,1754650232692,-606.3,0.00018766,2]
[377985724,1754650232701,-400.0,0.00018766,2]
[377985726,1754650232712,-519.83,0.00018766,2]
[377985728,1754650232722,-400.0,0.00018766,2]
[377985730,1754650232732,-501.95,0.00018766,2]
[377985734,1754650232742,-400.0,0.00018766,2]
[377985737,1754650232752,-400.0,0.00018766,2]
[377985740,1754650232762,-1462.58,0.00018766,2]
[377985743,1754650232771,-400.0,0.00018766,2]
[377985745,1754650232781,-1070.04,0.00018766,2]
[377985747,1754650232791,-400.0,0.00018766,2]
[377985749,1754650232801,-431.49,0.00018766,2]
[377985751,1754650232811,-808.08,0.00018766,2]
[377985753,1754650232821,-400.0,0.00018766,2]
[377985755,1754650232831,-400.0,0.00018766,2]
[377985757,1754650232840,-400.0,0.00018766,2]
[377985759,1754650232850,-400.0,0.00018766,2]
[377985761,1754650232860,-400.0,0.00018766,2]
[377985762,1754650232869,-698.3,0.00018766,2]
[377985763,1754650232878,-400.0,0.00018766,2]
[377985764,1754650232888,-938.0,0.00018766,2]
[377985765,1754650232898,-749.97,0.00018766,2]
[377985766,1754650232907,-400.0,0.00018766,2]
[377985767,1754650232920,-419.72,0.00018766,2]
[377985768,1754650232929,-400.0,0.00018766,2]
[377985769,1754650232943,-400.0,0.00018766,2]
[377985770,1754650232953,-400.0,0.00018766,2]
[377985771,1754650232963,-400.0,0.00018766,2]
[377985772,1754650232972,-400.0,0.00018766,2]
[377985773,1754650232982,-400.0,0.00018766,2]
[377985774,1754650232992,-834.0,0.00018766,2]
[377985775,1754650233002,-448.91,0.00018766,2]
[377985777,1754650233012,-400.0,0.00018766,2]
[377985778,1754650233022,-736.03,0.00018766,2]
[377985780,1754650233032,-793.4,0.00018766,2]
[377985782,1754650233042,-400.0,0.00018766,2]
[377985784,1754650233052,-400.0,0.00018766,2]
[377985786,1754650233062,-464.2,0.00018766,2]
[377985788,1754650233073,-400.0,0.00018766,2]
[377985790,1754650233084,-366.724313,0.00018766,2]
[377985792,1754650233094,-400.0,0.00018766,2]
[377985795,1754650233104,-400.0,0.00018766,2]
[377985797,1754650233115,-400.0,0.00018766,2]
[377985799,1754650233124,-400.0,0.00018766,2]
[377985801,1754650233135,-887.68,0.00018766,2]
[377985803,1754650233145,-400.0,0.00018766,2]
[377985804,1754650233155,-607.49,0.00018766,2]
[377985806,1754650233165,-400.0,0.00018766,2]
[377985808,1754650233175,-400.0,0.00018766,2]
[377985809,1754650233185,-447.74273,0.00018766,2]
[377985811,1754650233195,-623.59,0.00018766,2]
[377985813,1754650233204,-483.93,0.00018766,2]
[377985815,1754650233214,-400.0,0.00018766,2]
[377985817,1754650233224,-400.0,0.00018766,2]
[377985819,1754650233235,-400.0,0.00018766,2]
[377985821,1754650233245,-400.0,0.00018766,2]
[377985823,1754650233255,-400.0,0.00018766,2]
[377985825,1754650233265,-1265.77,0.00018766,2]
[377985827,1754650233276,-400.0,0.00018766,2]
[377985829,1754650233285,-400.0,0.00018766,2]
[377985831,1754650233296,-400.0,0.00018766,2]
[377985833,1754650233306,-400.0,0.00018766,2]
[377985835,1754650233316,-400.0,0.00018766,2]
[377985837,1754650233327,-400.0,0.00018766,2]
[377985839,1754650233336,-341.892742,0.00018766,2]
[377985841,1754650233347,-1253.99,0.00018766,2]
[377985843,1754650233357,-400.0,0.00018766,2]
[377985845,1754650233368,-519.0,0.00018766,2]
[377985847,1754650233378,-502.43,0.00018766,2]
[377985849,1754650233389,-400.0,0.00018766,2]
[377985851,1754650233399,-400.0,0.00018766,2]
[377985853,1754650233409,-429.41,0.00018766,2]
[377985855,1754650233419,-400.0,0.00018766,2]
[377985857,1754650233429,-1064.51,0.00018766,2]
[377985859,1754650233439,-719.8,0.00018766,2]
[377985860,1754650233449,-500.0,0.00018766,2]
[377985861,1754650233460,-400.0,0.00018766,2]
[377985862,1754650233471,-400.0,0.00018766,2]
[377985863,1754650233481,-588.89,0.00018766,2]
[377985864,1754650233491,-400.0,0.00018766,2]
[377985865,1754650233501,-1410.29,0.00018766,2]
[377985866,1754650233511,-400.0,0.00018766,2]
[377985867,1754650233522,-400.0,0.00018766,2]
[377985868,1754650233532,-461.21,0.00018766,2]
[377985869,1754650233542,-1320.21,0.00018766,2]
[377985870,1754650233552,-400.0,0.00018766,2]
[377985871,1754650233562,-400.0,0.00018766,2]
[377985872,1754650233572,-245.518574,0.00018766,2]
[377985873,1754650233583,-400.0,0.00018766,2]
[377985874,1754650233593,-703.11,0.00018766,2]
[377985875,1754650233603,-400.0,0.00018766,2]
[377985876,1754650233613,-400.0,0.00018766,2]
[377985877,1754650233624,-400.0,0.00018766,2]
[377985878,1754650233635,-400.0,0.00018766,2]
[377985879,1754650233645,-400.0,0.00018766,2]
[377985880,1754650233655,-2289.2,0.00018766,2]
[377985881,1754650233665,-400.0,0.00018766,2]
[377985882,1754650233675,-510.57,0.00018766,2]
[377985883,1754650233686,-400.0,0.00018766,2]
[377985884,1754650233696,-1400.64,0.00018766,2]
[377985885,1754650233707,-5319.17,0.00018766,2]
[377985886,1754650233717,-523.92,0.00018766,2]
[377985887,1754650233727,-400.0,0.00018766,2]
[377985888,1754650233739,-400.0,0.00018766,2]
[377985889,1754650233749,-400.0,0.00018766,2]
[377985890,1754650233759,-478.12,0.00018766,2]
[377985891,1754650233770,-400.0,0.00018766,2]
[377985892,1754650233780,-400.0,0.00018766,2]
[377985893,1754650233790,-400.0,0.00018766,2]
[377985894,1754650233800,-1036.4,0.00018766,2]
[377985895,1754650233811,-400.0,0.00018766,2]
[377985896,1754650233821,-400.0,0.00018766,2]
[377985897,1754650233832,-400.0,0.00018766,2]
[377985898,1754650233842,-400.0,0.00018766,2]
[377985899,1754650233852,-400.0,0.00018766,2]
[377985900,1754650233862,-873.44,0.00018766,2]
[377985901,1754650233873,-400.0,0.00018766,2]
[377985902,1754650233883,-1569.66,0.00018766,2]
[377985903,1754650233893,-400.0,0.00018766,2]
[377985904,1754650233903,-285.66781707,0.00018766,2]
[377985905,1754650233913,-400.0,0.00018766,2]
[377985906,1754650233927,-400.0,0.00018766,2]
[377985907,1754650233937,-400.0,0.00018766,2]
[377985908,1754650233947,-568.01,0.00018766,2]
[377985909,1754650233956,-624.27,0.00018766,2]
[377985910,1754650233967,-400.0,0.00018766,2]
[377985911,1754650233977,-400.0,0.00018766,2]
[377985912,1754650233987,-997.39,0.00018766,2]
[377985913,1754650233997,-625.14,0.00018766,2]
[377985914,1754650234008,-466.95,0.00018766,2]
[377985915,1754650234017,-481.55,0.00018766,2]
[377985916,1754650234027,-536.3,0.00018766,2]
[377985917,1754650234037,-400.0,0.00018766,2]
[377985918,1754650234047,-2273.94,0.00018766,2]
[377985919,1754650234057,-400.0,0.00018766,2]
[377985920,1754650234068,-400.0,0.00018766,2]
[377985921,1754650234078,-400.0,0.00018766,2]
[377985922,1754650234088,-400.0,0.00018766,2]
[377985923,1754650234098,-500.0,0.00018766,2]
[377985924,1754650234109,-664.22,0.00018766,2]
[377985925,1754650234119,-537.17,0.00018766,2]
[377985926,1754650234129,-931.29,0.00018766,2]
[377985927,1754650234139,-400.0,0.00018766,2]
[377985928,1754650234150,-848.79,0.00018766,2]
[377985929,1754650234160,-596.6,0.00018766,2]
[377985930,1754650234170,-839.01,0.00018766,2]
[377985931,1754650234181,-538.19,0.00018766,2]
[377985932,1754650234191,-727.13,0.00018766,2]
[377985933,1754650234201,-433.95,0.00018766,2]
[377985934,1754650234212,-400.0,0.00018766,2]
[377985935,1754650234223,-1000.0,0.00018766,2]
[377985936,1754650234233,-400.0,0.00018766,2]
[377985937,1754650234243,-417.64,0.00018766,2]
[377985938,1754650234254,-400.0,0.00018766,2]
[377985939,1754650234264,-211.62674257,0.00018767,2]
[377985940,1754650234274,-457.64618948,0.00018767,2]
[377985941,1754650234284,-842.44706758,0.00018767,2]
[377985942,1754650234294,-530.97,0.00018767,2]
[377985943,1754650234304,-265.46726934,0.00018767,2]
[377985944,1754650234324,-159.24145407,0.00018767,2]
[377985945,1754650234335,-400.0,0.00018767,2]
[377985946,1754650234347,-400.0,0.00018767,2]
[377985947,1754650234358,-354.99854593,0.00018767,2]
[377985948,1754650234381,-45.00145407,0.00018767,2]
[377985949,1754650234391,-400.0,0.00018767,2]
[377985950,1754650234403,-161.25220794,0.00018767,2]
[377985951,1754650234427,-393.47779206,0.00018767,2]
[377985952,1754650234437,-354.72851903,0.00018767,2]
[377985953,1754650234466,-45.27148097,0.00018767,2]
[377985954,1754650234478,-479.40466098,0.00018767,2]
[377985955,1754650234493,-20.59533902,0.00018767,2]
[377985956,1754650234503,-502.38391568,0.00018767,2]
[377985957,1754650234513,-681.16,0.00018767,2]
[377985958,1754650234524,-23.2913804,0.00018767,2]
[377985959,1754650234536,-608.1686196,0.00018767,2]
[377985960,1754650234546,-400.0,0.00018767,2]
[377985961,1754650234557,-158.9973804,0.00018767,2]
[377985963,1754650237640,-400.0,0.00018766,2]
[377985964,1754650237649,-400.0,0.00018766,2]
[377985965,1754650237659,-457.64618948,0.00018767,2]
[377985966,1754650237669,-241.0026196,0.00018767,2]
[377985967,1754650237678,-400.0,0.00018767,2]
[377985968,1754650237688,-451.27,0.00018767,2]
[377985969,1754650237698,-400.0,0.00018767,2]
[377985970,1754650237707,-400.0,0.00018767,2]
[377985971,1754650237717,-691.32,0.00018767,2]
[377985972,1754650237727,-400.0,0.00018767,2]
[377985973,1754650237736,-400.0,0.00018767,2]
[377985974,1754650237746,-400.0,0.00018767,2]
[377985975,1754650237756,-473.89,0.00018767,2]
[377985976,1754650237766,-400.0,0.00018767,2]
[377985977,1754650237775,-669.34,0.00018767,2]
[377985978,1754650237785,-400.0,0.00018767,2]
[377985979,1754650237795,-400.0,0.00018767,2]
[377985980,1754650237805,-498.09,0.00018767,2]
[377985981,1754650237815,-400.0,0.00018767,2]
[377985982,1754650237824,-761.64,0.00018767,2]
[377985983,1754650237835,-400.0,0.00018767,2]
[377985984,1754650237845,-400.0,0.00018767,2]
[377985985,1754650237854,-400.0,0.00018767,2]
[377985986,1754650237864,-400.0,0.00018767,2]
[377985987,1754650237874,-400.0,0.00018767,2]
[377985988,1754650237883,-446.16,0.00018767,2]
[377985989,1754650237893,-561.6,0.00018767,2]
[377985990,1754650237903,-400.0,0.00018767,2]
[377985992,1754650237912,-400.0,0.00018767,2]
[377985993,1754650237926,-375.91915822,0.00018767,2]
[377985995,1754650237935,-400.0,0.00018767,2]
[377985997,1754650237946,-400.0,0.00018767,2]
[377985998,1754650237956,-400.0,0.00018767,2]
[377986000,1754650237965,-400.0,0.00018767,2]
[377986002,1754650237975,-400.0,0.00018767,2]
[377986003,1754650237984,-400.0,0.00018767,2]
[377986004,1754650237994,-400.0,0.00018767,2]
[377986005,1754650238004,-400.0,0.00018767,2]
[377986006,1754650238013,-504.68,0.00018767,2]
[377986007,1754650238022,-754.16,0.00018767,2]
[377986008,1754650238031,-400.0,0.00018767,2]
[377986009,1754650238040,-526.53,0.00018767,2]
[377986010,1754650238049,-416.44,0.00018767,2]
[377986011,1754650238059,-400.0,0.00018767,2]
[377986012,1754650238068,-400.0,0.00018767,2]
[377986014,1754650238078,-400.0,0.00018767,2]
[377986016,1754650238087,-400.0,0.00018767,2]
[377986018,1754650238096,-400.0,0.00018767,2]
[377986020,1754650238106,-437.89,0.00018767,2]
[377986022,1754650238115,-400.0,0.00018767,2]
[377986025,1754650238125,-728.06,0.00018767,2]
[377986026,1754650238134,-714.75,0.00018767,2]
[377986029,1754650238144,-400.0,0.00018767,2]
[377986031,1754650238153,-400.0,0.00018767,2]
[377986032,1754650238163,-682.45,0.00018767,2]
[377986034,1754650238172,-766.35,0.00018767,2]
[377986036,1754650238181,-497.78,0.00018767,2]
[377986038,1754650238191,-400.0,0.00018767,2]
[377986040,1754650238200,-400.0,0.00018767,2]
[377986042,1754650238209,-613.48,0.00018767,2]
[377986044,1754650238218,-400.0,0.00018767,2]
[377986046,1754650238227,-400.0,0.00018767,2]
[377986048,1754650238236,-400.0,0.00018767,2]
[377986050,1754650238245,-400.0,0.00018767,2]
[377986052,1754650238255,-400.0,0.00018767,2]
[377986054,1754650238264,-891.19,0.00018767,2]
[377986056,1754650238273,-438.89532401,0.00018767,2]
[377986058,1754650238282,-400.0,0.00018767,2]
[377986060,1754650238292,-400.0,0.00018767,2]
[377986062,1754650238302,-400.0,0.00018767,2]
[377986064,1754650238311,-836.73,0.00018767,2]
[377986066,1754650238321,-1243.65,0.00018767,2]
[377986068,1754650238330,-400.0,0.00018767,2]
[377986071,1754650238340,-400.0,0.00018767,2]
[377986073,1754650238351,-400.0,0.00018767,2]
[377986075,1754650238360,-400.0,0.00018767,2]
[377986077,1754650238369,-394.24961344,0.00018767,2]
[377986079,1754650238378,-400.0,0.00018767,2]
[377986081,1754650238388,-400.0,0.00018767,2]
[377986083,1754650238398,-400.0,0.00018767,2]
[377986085,1754650238407,-400.0,0.00018767,2]
[377986087,1754650238417,-400.0,0.00018767,2]
[377986089,1754650238426,-520.13,0.00018767,2]
[377986091,1754650238435,-400.0,0.00018767,2]
[377986093,1754650238445,-1596.26,0.00018767,2]
[377986095,1754650238454,-489.94,0.00018767,2]
[377986097,1754650238463,-721.6,0.00018767,2]
[377986099,1754650238472,-1030.75,0.00018767,2]
[377986101,1754650238482,-400.0,0.00018767,2]
[377986103,1754650238491,-400.0,0.00018767,2]
[377986105,1754650238500,-400.0,0.00018767,2]
[377986107,1754650238510,-400.0,0.00018767,2]
[377986109,1754650238519,-400.0,0.00018767,2]
[377986111,1754650238528,-400.0,0.00018767,2]
[377986113,1754650238537,-203.01466628,0.00018767,2]
[377986115,1754650238546,-611.89,0.00018767,2]
[377986117,1754650238555,-383.48918267,0.00018767,2]
[377986119,1754650238564,-775.69,0.00018767,2]
[377986121,1754650238573,-400.0,0.00018767,2]
[377986123,1754650238583,-668.61,0.00018767,2]
[377986132,1754650238660,-281.73037198,0.00018767,2]
[377986134,1754650238670,-400.0,0.00018767,2]
[377986136,1754650238679,-400.0,0.00018767,2]
[377986138,1754650238688,-723.99,0.00018767,2]
[377986140,1754650238697,-400.0,0.00018767,2]
[377986142,1754650238706,-400.0,0.00018767,2]
[377986144,1754650238715,-1242.48,0.00018767,2]
[377986146,1754650238725,-650.53,0.00018767,2]
[377986148,1754650238734,-400.0,0.00018767,2]
[377986150,1754650238743,-400.0,0.00018767,2]
[377986152,1754650238752,-401.6836002,0.00018767,2]
[377986154,1754650238761,-517.44,0.00018767,2]
[377986156,1754650238771,-400.0,0.00018767,2]
[377986158,1754650238779,-266.43426351,0.00018767,2]
[377986160,1754650238789,-400.0,0.00018767,2]
[377986162,1754650238798,-662.03,0.00018767,2]
[377986164,1754650238807,-400.0,0.00018767,2]
[377986166,1754650238817,-400.0,0.00018767,2]
[377986168,1754650238827,-817.48,0.00018767,2]
[377986169,1754650238837,-1081.01,0.00018767,2]
[377986172,1754650238847,-400.0,0.00018767,2]
[377986173,1754650238857,-400.0,0.00018767,2]
[377986175,1754650238866,-400.0,0.00018767,2]
[377986177,1754650238875,-400.0,0.00018767,2]
[377986179,1754650238884,-957.52,0.00018767,2]
[377986181,1754650238893,-731.91,0.00018767,2]
[377986183,1754650238903,-297.27427638,0.00018767,2]
[377986185,1754650238912,-671.72,0.00018767,2]
[377986187,1754650238925,-633.63,0.00018767,2]
[377986189,1754650238934,-1105.76,0.00018767,2]
[377986191,1754650238944,-400.0,0.00018767,2]
[377986193,1754650238953,-969.14,0.00018767,2]
[377986195,1754650238963,-400.0,0.00018767,2]
[377986197,1754650238971,-418.21,0.00018767,2]
[377986199,1754650238981,-283.8446812,0.00018767,2]
[377986201,1754650238991,-684.49,0.00018767,2]
[377986203,1754650239000,-597.55,0.00018767,2]
[377986205,1754650239009,-603.69,0.00018767,2]
[377986207,1754650239018,-400.0,0.00018767,2]
[377986209,1754650239027,-400.0,0.00018767,2]
[377986211,1754650239036,-400.0,0.00018767,2]
[377986213,1754650239046,-540.1,0.00018767,2]
[377986215,1754650239055,-400.0,0.00018767,2]
[377986217,1754650239063,-892.86,0.00018767,2]
[377986219,1754650239073,-477.67,0.00018767,2]
[377986221,1754650239083,-464.42,0.00018767,2]
[377986223,1754650239092,-400.0,0.00018767,2]
[377986225,1754650239102,-717.18,0.00018767,2]
[377986227,1754650239111,-400.0,0.00018767,2]
[377986228,1754650239120,-567.11,0.00018767,2]
[377986229,1754650239129,-703.36,0.00018767,2]
[377986230,1754650239138,-400.0,0.00018767,2]
[377986231,1754650239147,-400.0,0.00018767,2]
[377986232,1754650239157,-400.0,0.00018767,2]
[377986233,1754650239167,-427.85,0.00018767,2]
[377986234,1754650239176,-400.0,0.00018767,2]
[377986235,1754650239186,-400.0,0.00018767,2]
[377986236,1754650239195,-400.0,0.00018767,2]
[377986237,1754650239205,-400.0,0.00018767,2]
[377986238,1754650239214,-400.0,0.00018767,2]
[377986239,1754650239223,-425.19,0.00018767,2]
[377986240,1754650239232,-906.31,0.00018767,2]
[377986241,1754650239242,-410.31533437,0.00018767,2]
[377986242,1754650239251,-496.45,0.00018767,2]
[377986243,1754650239260,-1305.74,0.00018767,2]
[377986244,1754650239269,-381.47794186,0.00018767,2]
[377986245,1754650239279,-545.2,0.00018767,2]
[377986246,1754650239288,-547.15,0.00018767,2]
[377986247,1754650239297,-1205.42,0.00018767,2]
[377986248,1754650239306,-400.0,0.00018767,2]
[377986249,1754650239316,-676.23,0.00018767,2]
[377986250,1754650239325,-400.0,0.00018767,2]
[377986251,1754650239336,-400.0,0.00018767,2]
[377986252,1754650239346,-540.73,0.00018767,2]
[377986253,1754650239355,-400.0,0.00018767,2]
[377986254,1754650239365,-919.87,0.00018767,2]
[377986255,1754650239375,-400.0,0.00018767,2]
[377986256,1754650239385,-400.0,0.00018767,2]
[377986257,1754650239394,-400.0,0.00018767,2]
[377986258,1754650239404,-400.0,0.00018767,2]
[377986259,1754650239414,-805.98,0.00018767,2]
[377986260,1754650239423,-1042.56,0.00018767,2]
[377986261,1754650239432,-889.77,0.00018767,2]
[377986262,1754650239442,-400.0,0.00018767,2]
[377986263,1754650239451,-400.0,0.00018767,2]
[377986264,1754650239460,-673.0,0.00018767,2]
[377986265,1754650239469,-400.0,0.00018767,2]
[377986266,1754650239478,-925.0,0.00018767,2]